{"text_format":"1","workbook":"xlsx","n_sheets":1,"sheets":["مرتجعات طازج"],"not_rendered":{"charts":0,"images":0,"macros":1,"external_links":0,"defined_names":2,"comments":0,"pivot_tables":0},"unopened":[],"bounds":{"document_bytes":16777216,"sheet_cells":100000,"rows_first":2000,"rows_last":500,"rows_between":2000,"halvings":0,"cell_chars":16384,"cell_head_chars":4096},"cells_cut":0,"cells_raw":0,"read":"whole","date_system":"1900"}

{"sheet":"مرتجعات طازج","index":0,"n_rows":52,"n_cols":10,"rows_kept":52,"cut":false,"hidden":false,"merged":[[10,3,10,4],[0,2,0,3],[1,2,1,3]]}
[]
[]
[null,"تاريخ الانتاج","الصنف","الوزن","السعر","القيمة ","تاريخ الاستلام ","المصدر","سبب الاتلاف"]
[null,null,"حمودة ",null,{"$f":"VLOOKUP(C4,$J$4:$K$49,2,0)","v":0},{"$f":"D4*E4","v":0},{"$f":"$C$2","v":"00:00:00"},"المركز","انتهاء صلاحية","حمودة "]
[null,null,"مطاعم ",null,0,{"$f":"D5*E5","v":0},"00:00:00","المركز","انتهاء صلاحية","ضليل "]
[null,null,"مسحب مع خملة ",null,0,0,"00:00:00","المركز","انتهاء صلاحية","جامبو "]
[null,null,null,null,{"$error":"#N/A"},{"$error":"#N/A"},"00:00:00","المركز","انتهاء صلاحية","مطاعم "]
[null,null,null,null,{"$error":"#N/A"},{"$error":"#N/A"},"00:00:00","المركز","انتهاء صلاحية","مسحب مع خملة "]
[null,null,null,null,{"$error":"#N/A"},{"$error":"#N/A"},"00:00:00","المركز","انتهاء صلاحية","دجاج حلل مع خملة "]
[null,null,"المجموع",{"$f":"SUM(D4:D9)","v":0},null,{"$f":"SUBTOTAL(9,F4:F9)","v":{"$error":"#N/A"}},null,null,null,"صدر مسحب "]
[null,null,null,null,null,null,null,null,null,"شيش طاووق طازج "]
[null,null,null,null,null,null,null,null,null,"فخذ سفلي طازج "]
[null,null,null,null,null,null,null,null,null,"فخذ علوي طازج "]
[null,null,null,null,null,null,null,null,null,"فخذ طازج "]
[null,null,null,null,null,null,null,null,null,"فخذ عائلي"]
[null,null,null,null,null,null,null,null,null,"فخذ حلل فرط "]
[null,null,null,null,null,null,null,null,null,"بقايا فخذ "]
[null,null,null,null,null,null,null,null,null,"قوانص حلل "]
[null,null,null,null,null,null,null,null,null,"اجنحة "]
[null,null,null,null,null,null,null,null,null,"دجاج حلل /2"]
[null,null,null,null,null,null,null,null,null,"اجنحة حلل فرط "]
[null,null,null,null,null,null,null,null,null,"اجنحة / 2 "]
[null,null,null,null,null,null,null,null,null,"قطع صدر "]
[null,null,null,null,null,null,null,null,null,"فخذ بدون مؤخرة "]
[null,null,null,null,null,null,null,null,null,"تندر"]
[null,null,null,null,null,null,null,null,null,"ظهور "]
[null,null,null,null,null,null,null,null,null,"دهون - بقايا اتلاف "]
[null,null,null,null,null,null,null,null,null,"عظم دجاج "]
[null,null,null,null,null,null,null,null,null,"عظم صدر مسحب "]
[null,null,null,null,null,null,null,null,null,"مجمد فئة 1"]
[null,null,null,null,null,null,null,null,null,"مجمد فئة 2"]
[null,null,null,null,null,null,null,null,null,"مجمد فئة 3"]
[null,null,null,null,null,null,null,null,null,"مجمد فئة 4"]
[null,null,null,null,null,null,null,null,null,"مجمد فئة 5"]
[null,null,null,null,null,null,null,null,null,"مجمد فئة 6"]
[null,null,null,null,null,null,null,null,null,"مجمد فئة 7"]
[null,null,null,null,null,null,null,null,null,"صدر مسحب حلل-مجمد"]
[null,null,null,null,null,null,null,null,null,"دجاج مقطع مشكل -مجمد"]
[null,null,null,null,null,null,null,null,null,"فخذ -مجمد"]
[null,null,null,null,null,null,null,null,null,"كبدة -مجمد"]
[null,null,null,null,null,null,null,null,null,"قوانص-مجمد"]
[null,null,null,null,null,null,null,null,null,"صدر-مجمد"]
[null,null,null,null,null,null,null,null,null,"اجنحة -مجمد"]
[null,null,null,null,null,null,null,null,null,"دجاج مسحب حلل -مجمد"]
[null,null,null,null,null,null,null,null,null,"فخذ مسحب -مجمد"]
[null,null,null,null,null,null,null,null,null,"صدر مسحب -مجمد"]
[null,null,null,null,null,null,null,null,null,"قطع صدر - دهون -مجمد"]
[null,null,null,null,null,null,null,null,null,"شيش طاووق -مجمد"]
[null,null,null,null,null,null,null,null,null,"تندر - فيليه -مجمد"]
[null,null,null,null,null,null,null,null,null,"فخذ سفلي -مجمد"]
[null,null,null,null,null,null,null,null,null,"فخذ علوي -مجمد"]
[null,null,null,null,null,null,null,null,null,"لحم مفروم -مجمد"]